Cogmind - Beta 9.6 @@@ ROGUE MODE // 2020.07.28 @ 09:45:19 Player: Phillammon Result: Destroyed by G-47 Trooper with Particle Gun Performance ------------- Evolutions (2) 1000 Regions Visited (5) 1000 Robots Destroyed (13) 65 Value Destroyed (144) 144 Prototype IDs (0) 0 Alien Tech Used (0) 0 Bonus (0) 0 TOTAL SCORE: 2209 Bonus ------- None Cogmind --------- Core Integrity 0/550 Matter 290/300 Energy 93/100 System Corruption 0% Temperature Cool (18) Movement Core (50) Location -8/Materials Parts ------- > --- POWER (2) -------- (None) > --- PROPULSION (4) --- (None) > --- UTILITY (3) ------ Improved Sensor Array Hacking Suite System Shield > --- WEAPON (2) ------- (None) > --- INVENTORY (4) ---- Light Angular Momentum Engine Advanced Heat Sink Large Storage Unit Peak State ------------ > --- POWER ------------ Light Angular Momentum Engine > --- PROPULSION ------- Flight Unit Flight Unit Flight Unit Cesium-ion Thruster > --- UTILITY ---------- Advanced Heat Sink Hacking Suite System Shield > --- WEAPON ----------- Makeshift Axe > --- INVENTORY -------- Nuclear Core Large Storage Unit [Rating: 26] Favorites ----------- Power Light Ion Engine Engine Light Ion Engine Power Core Nuclear Core Propulsion Flight Unit Treads Light Treads Leg Aluminum Leg Wheel Wheel Flight Unit Flight Unit Utility Tractor Beam Device Tractor Beam Storage Large Storage Unit Hackware Hacking Suite Weapon Light Assault Rifle Energy Gun Small Laser Ballistic Gun Light Assault Rifle Launcher Rocket Launcher Slashing Weapon Makeshift Axe Build | -11 -10 -10 -10 -9 -8 ------- Run | Scr Mat Min Exi Min Mat Slots Evolved 4 | . . . . . 4 Power 1 | . . . . . 1 Propulsion 2 | . . . . . 2 Utility 1 | . . . . . 1 Weapon . | . . . . . . Parts Attached 41 | 3 2 . 2 11 23 Power 7 | . 1 . . 1 5 Engine 4 | . 1 . . 1 2 Core 3 | . . . . . 3 Reactor . | . . . . . . Propulsion 12 | 3 1 . . 2 6 Treads 1 | 1 . . . . . Leg . | . . . . . . Wheel 2 | 2 . . . . . Hover . | . . . . . . Flight 9 | . 1 . . 2 6 Utility 12 | . . . . 3 9 Device 8 | . . . . 3 5 Storage 2 | . . . . . 2 Processor . | . . . . . . Hackware 2 | . . . . . 2 Protection . | . . . . . . Artifact . | . . . . . . Weapon 10 | . . . 2 5 3 Energy Gun . | . . . . . . Energy Cannon . | . . . . . . Ballistic Gun 5 | . . . 1 2 2 Ballistic Cannon . | . . . . . . Launcher 2 | . . . . 2 . Special Weapon . | . . . . . . Impact Weapon . | . . . . . . Slashing Weapon 3 | . . . 1 1 1 Piercing Weapon . | . . . . . . Special Melee Weapon . | . . . . . . Unidentified Prototypes . | . . . . . . Parts Lost 17 | . . . . 3 14 Power 3 | . . . . 1 2 Propulsion 8 | . . . . 1 7 Utility 2 | . . . . . 2 Weapon 4 | . . . . 1 3 Highest Loss Streak 10 | . . . . 3 10 Average Slot Usage (%) 56 | . 76 28 28 66 63 Engine 12 | . 14 14 14 12 10 Flight 19 | . 2 14 14 22 25 Device 9 | . . . . 18 11 Storage 1 | . 12 . . . 3 Hackware 1 | . . . . . 4 Ballistic Gun 6 | . 12 . . 10 5 Slashing Weapon 1 | . . . . 1 3 Naked Turns 5 | . . . . 5 . Heaviest Build 24 | 12 12 3 6 8 24 Greatest Support 27 | 20 20 4 4 8 27 Greatest Overweight (x) 1 | . . . 1 . 1 Average Overweight (x) . | . . . . . . Largest Inventory Capacity 10 | 6 6 4 4 4 10 Average Capacity 4 | 6 5 4 4 4 6 Most Carried 6 | 6 6 4 4 4 4 Average Carried 3 | 5 4 4 3 3 3 Final Capacity 6 | 6 4 4 4 4 4 Final Carried 4 | 4 4 4 4 4 3 Class Distribution -------------------- 39% | Scavenger-Mutant 38% | Mutant 21% | Scavenger-Sprinter Dominant Class ---------------- Mutant | -10/Materials Mutant | -10/Mines Mutant | -10/Exiles Scavenger-Mutant | -9/Mines Scavenger-Sprinter | -8/Materials Resources | -11 -10 -10 -10 -9 -8 ----------- Run | Scr Mat Min Exi Min Mat Matter Collected 572 | 230 . . 12 158 172 Remotely 30 | . . . . 30 . Salvage Created 296 | . . . 12 159 125 Parts 22 | . . . . 10 12 Haulers Intercepted . | . . . . . . Recyclers Shooed 1 | . . . . 1 . Parts Field Recycled . | . . . . . . Retrieved Matter . | . . . . . . Parts Self-Destructed . | . . . . . . Prevented . | . . . . . . Kills | -11 -10 -10 -10 -9 -8 ------- Run | Scr Mat Min Exi Min Mat Combat Hostiles Destroyed 10 | . . . . 5 5 Melee 3 | . . . . 1 2 Guns 6 | . . . . 3 3 AOE 1 | . . . . 1 . Classes Destroyed 6 | . . . . 5 1 Worker 1 | . . . . 1 . Tunneler 1 | . . . . 1 . Recycler 1 | . . . . 1 . Swarmer 8 | . . . . 4 4 Grunt 1 | . . . . . 1 Assembled 1 | . . . . 1 . Best Kill Streak 5 | . . . . 5 5 Combat Bots Only 5 | . . . . 4 5 Max Kills in Single Turn 2 | . . . . 2 1 Gunslinging . | . . . . . . Exploded 1 | . . . . 1 . Melee 1 | . . . . 1 1 Uniques/NPCs Destroyed . | . . . . . . Combat | -11 -10 -10 -10 -9 -8 -------- Run | Scr Mat Min Exi Min Mat Damage Taken 1420 | . . 61 . 196 1163 Core 650 | . . 14 . 73 563 Absorbed by Shields . | . . . . . . Core Remaining (%) 82 | 100 . . . 65 . Volleys Fired 25 | . . . . 7 18 Largest 2 | . . . . 1 2 Hottest 40 | . . . . 24 40 Shots Fired 29 | . . . . 7 22 Gun 29 | . . . . 7 22 Cannon . | . . . . . . Launcher . | . . . . . . Special . | . . . . . . Kinetic 29 | . . . . 7 22 Thermal . | . . . . . . Explosive . | . . . . . . Electromagnetic . | . . . . . . Robot Hit Streak 7 | . . . . 7 6 Robot Miss Streak 4 | . . . . 3 4 Penetration Max . | . . . . . . Secondary Targets 1 | . . . . . 1 Max Gunslinging Chain 1 | . . . . . 1 Shots Hit Robots 31 | . . . 2 10 19 Core Hits 19 | . . . 1 9 9 Critical Hits . | . . . . . . Critical Kills . | . . . . . . Critical Parts Destroyed . | . . . . . . Melee Attacks 14 | . . . 2 5 7 Impact . | . . . . . . Slashing 14 | . . . 2 5 7 Piercing . | . . . . . . Sneak Attacks 1 | . . . . 1 . Combat Hostiles . | . . . . . . Follow-up Attacks . | . . . . . . Damage Inflicted 1033 | . . . 258 452 323 Guns 235 | . . . . 115 120 Cannons . | . . . . . . Explosions 131 | . . . . 131 . Melee 667 | . . . 258 206 203 Ramming . | . . . . . . Kinetic 235 | . . . . 115 120 Thermal . | . . . . . . Explosive 131 | . . . . 131 . Electromagnetic . | . . . . . . Impact . | . . . . . . Slashing 667 | . . . 258 206 203 Piercing . | . . . . . . Highest Corruption . | . . . . . . Average Corruption . | . . . . . . Corruption Purged . | . . . . . . Overload Shots . | . . . . . . Overflow Damage 117 | . . . 22 92 3 Projectiles . | . . . . . . Explosions 6 | . . . . 6 . Melee 111 | . . . 22 86 3 Knockbacks . | . . . . . . Impact . | . . . . . . Kinetic . | . . . . . . Secondary . | . . . . . . Self-Inflicted Damage . | . . . . . . Shots . | . . . . . . Rammed . | . . . . . . Targets Rammed . | . . . . . . Kicked . | . . . . . . Crushed . | . . . . . . Highest Temperature 44 | . . 1 . 4 44 Average Temperature 14 | . . 1 . 4 15 Received Heat Transfer 611 | . . 27 . 26 558 Siege Activations . | . . . . . . Robots Corrupted . | . . . . . . Combat Hostiles . | . . . . . . Parts Fried . | . . . . . . Impact Corruptions . | . . . . . . Robots Melted . | . . . . . . Combat Hostiles . | . . . . . . Parts Melted . | . . . . . . Heat Transferred . | . . . . . . Parts Sabotaged . | . . . . . . Parts Stolen . | . . . . . . Parts Stripped . | . . . . . . Power Chain Reactions . | . . . . . . Missiles Intercepted . | . . . . . . Alert | -11 -10 -10 -10 -9 -8 ------- Run | Scr Mat Min Exi Min Mat Peak Influence 167 | . 23 23 . 110 167 Average Influence 76 | . 7 18 . 74 99 Maximum Alert Level . | . . . . . . Low Security (%) 100 | 100 100 100 . 100 100 Level 1 . | . . . . . . Level 2 . | . . . . . . Level 3 . | . . . . . . Level 4 . | . . . . . . Level 5 . | . . . . . . High Security . | . . . . . . Max Security . | . . . . . . Squads Dispatched 4 | . 1 . . 1 2 Investigation 3 | . 1 . . 1 1 Extermination . | . . . . . . Reinforcement 1 | . . . . . 1 Assault . | . . . . . . Garrison . | . . . . . . Intercept . | . . . . . . Construction Impeded . | . . . . . . Haulers Reinforced . | . . . . . . Stealth | -11 -10 -10 -10 -9 -8 --------- Run | Scr Mat Min Exi Min Mat Distress Signals 1 | . . . . . 1 Communications Jammed . | . . . . . . Distress Signals . | . . . . . . Times Spotted 59 | . 1 4 . 13 41 Peak Tracking Total 10 | . 1 4 . 4 10 Tactical Retreats 10 | . . . . 3 7 Traps | -11 -10 -10 -10 -9 -8 ------- Run | Scr Mat Min Exi Min Mat Traps Triggered 1 | . . . . . 1 Indirectly . | . . . . . . Trap Hack Attempts . | . . . . . . Triggered . | . . . . . . Disarmed . | . . . . . . Reprogrammed . | . . . . . . Reused 1 | . . . . 1 . Traps Extracted . | . . . . . . Installed 3 | . . . . 3 . Triggered . | . . . . . . Machines | -11 -10 -10 -10 -9 -8 ---------- Run | Scr Mat Min Exi Min Mat Machines Disabled . | . . . . . . Max in Single Turn . | . . . . . . Machines Sabotaged . | . . . . . . Garrisons Compromised . | . . . . . . Overloaded Fab Kills . | . . . . . . Fab Network Shutdowns . | . . . . . . Hacking | -11 -10 -10 -10 -9 -8 --------- Run | Scr Mat Min Exi Min Mat Machines Accessed 5 | . 1 . 3 1 . Terminals 2 | . 1 . . 1 . Fabricators . | . . . . . . Repair Stations . | . . . . . . Recycling Units . | . . . . . . Scanalyzers . | . . . . . . Garrison Access . | . . . . . . Total Hacks 32 | . 4 . 25 3 . Successful 27 | . 2 . 25 . . Failed 5 | . 2 . . 3 . Catastrophic . | . . . . . . Database Lockouts . | . . . . . . Manual 3 | . 3 . . . . Terminals 7 | . 4 . . 3 . Fabricators . | . . . . . . Repair Stations . | . . . . . . Recycling Units . | . . . . . . Scanalyzers . | . . . . . . Garrison Access . | . . . . . . Terminal Hacks 26 | . 1 . 25 . . Record 25 | . . . 25 . . Repair Station Index 1 | . 1 . . . . Fabricator Hacks . | . . . . . . Repair Station Hacks . | . . . . . . Recycling Unit Hacks . | . . . . . . Scanalyzer . | . . . . . . Garrison Access Hacks . | . . . . . . Unauthorized Hacks 1 | . 1 . . . . Terminals 1 | . 1 . . . . Botnet 1 | . 1 . . . . Fabricators . | . . . . . . Repair Stations . | . . . . . . Recycling Units . | . . . . . . Scanalyzers . | . . . . . . Garrison Access . | . . . . . . Data Cores Recovered . | . . . . . . Used . | . . . . . . Hacking Detections 2 | . 1 . . 1 . Full Trace Events 2 | . 1 . . 1 . Feedback Events . | . . . . . . Feedback Blocked . | . . . . . . Robot Schematics Acquired . | . . . . . . Robots Built . | . . . . . . Matter . | . . . . . . Time . | . . . . . . Total Robot Build Rating . | . . . . . . Part Schematics Acquired . | . . . . . . Parts Built . | . . . . . . Matter . | . . . . . . Time . | . . . . . . Total Part Build Rating . | . . . . . . Parts Repaired . | . . . . . . Time . | . . . . . . Parts Recycled . | . . . . . . Recycled Matter . | . . . . . . Retrieved Matter . | . . . . . . Retrieved Components . | . . . . . . Parts Scanalyzed . | . . . . . . Part Schematics Acquired . | . . . . . . Parts Damaged . | . . . . . . Bothacking | -11 -10 -10 -10 -9 -8 ------------ Run | Scr Mat Min Exi Min Mat Used RIF Installer . | . . . . . . Robots Hacked . | . . . . . . Non-combat . | . . . . . . Combat . | . . . . . . Robot Hacks Applied . | . . . . . . Relay Couplers Released . | . . . . . . Robots Rewired . | . . . . . . Allies Hacked . | . . . . . . Hacks Repelled . | . . . . . . Allies | -11 -10 -10 -10 -9 -8 -------- Run | Scr Mat Min Exi Min Mat Total Allies . | . . . . . . Largest Group . | . . . . . . Highest-Rated Group . | . . . . . . Highest-Rated Ally . | . . . . . . Total Orders . | . . . . . . Ally Attacks . | . . . . . . Total Damage . | . . . . . . Kills . | . . . . . . Allies Corrupted . | . . . . . . Allies Melted . | . . . . . . Intel | -11 -10 -10 -10 -9 -8 ------- Run | Scr Mat Min Exi Min Mat Robot Analysis Total . | . . . . . . Derelict Logs Recovered 3 | . . . . 3 . Drone Launches . | . . . . . . Drone Recoveries . | . . . . . . Exploration | -11 -10 -10 -10 -9 -8 ------------- Run | Scr Mat Min Exi Min Mat Turns Passed 920 | 8 67 22 216 298 309 Spaces Moved 1596 | 2 51 54 512 534 443 Core 67 | . . . . 14 53 Treads 30 | 2 28 . . . . Legs . | . . . . . . Wheels . | . . . . . . Hover . | . . . . . . Flight 1499 | . 23 54 512 520 390 Fastest Speed 31 | 160 40 40 40 37 31 Average Speed 40 | 160 105 40 40 37 34 Slowest Speed 160 | 160 160 40 120 50 114 Overloaded Moves . | . . . . . . Propulsion Burnouts . | . . . . . . Robots Hopped 17 | . . . 1 10 6 Cave-ins Triggered . | . . . . . . Exploration Rate (%) 42 | 1 11 23 91 81 47 Regions Visited 5 Branch Regions 3 Pre-discovered Areas 1 | . . . . 1 . Known Exits Taken . | . . . . . . Unknown Exits Taken 5 | 1 1 1 1 1 . Scrap Searched 2 | . . . . 2 . Spaces Dug . | . . . . . . Terrain Destroyed 25 | . . . . 25 . Melee . | . . . . . . Projectile . | . . . . . . AOE 25 | . . . . 25 . Actions | -11 -10 -10 -10 -9 -8 --------- Run | Scr Mat Min Exi Min Mat Total 1817 | 6 64 53 519 605 570 Wait 117 | . 4 . . 46 67 Move 1561 | 1 50 53 509 515 433 Hop 13 | . . . 1 8 4 Pick Up 16 | . 3 . 1 5 7 Fast Attach 15 | . . . 1 6 8 Attach 19 | . . . 1 4 14 Detach 9 | . . . 2 1 6 Swap 7 | 3 2 . . 1 1 Drop 18 | 2 5 . 2 4 5 Fire 25 | . . . . 7 18 Melee 14 | . . . 2 5 7 Ram . | . . . . . . Kick . | . . . . . . Crush . | . . . . . . Escape Stasis . | . . . . . . Rewire . | . . . . . . Trap 3 | . . . . 3 . Miscellaneous . | . . . . . . Route ------- -11/Scrapyard -10/Materials -10/Mines -10/Exiles (discovered 2 exits: *Min x2) -9/Mines -8/Materials (discovered 1 exit: *Fac) History --------- Turn | Location | Event 6 | -11/Scrapyard | Discovered new exit (range 1) 9 | -11/Scrapyard | Entered Materials 70 | -10/Materials | Discovered new exit (range 14) 76 | -10/Materials | Entered Mines 96 | -10/Mines | Deemed a non-threat by the Exiles lab entrance 96 | -10/Mines | Discovered new exit (range 5) 98 | -10/Mines | Entered Exiles 98 | -10/Exiles | Found Exiles lab destroyed 255 | -10/Exiles | Discovered new exit (range 14) 308 | -10/Exiles | Discovered new exit (range 15) 314 | -10/Exiles | Entered Mines 316 | -9/Mines | Build established: Mutant 333 | -9/Mines | Found a hidden stash of uninstalled traps 350 | -9/Mines | Received a Rocket Launcher from a helpful Derelict 410 | -9/Mines | Lost 3 parts (1p1n1w) 421 | -9/Mines | Assembled infested the area 515 | -9/Mines | Learned Materials stockpile data 525 | -9/Mines | Learned location of Storage (-7) 596 | -9/Mines | Discovered new exit (range 10) 612 | -9/Mines | Entered Materials 612 | -8/Materials | Evolved 4 slots: Power x1, Propulsion x2, Utility x1 613 | -8/Materials | Identified exit to Factory 663 | -8/Materials | Build established: Scavenger-Mutant 828 | -8/Materials | Lost 10 parts (2p3n2u3w) 838 | -8/Materials | Core integrity fell below 50% 901 | -8/Materials | Core integrity fell below 20% 921 | -8/Materials | Destroyed by G-47 Trooper with Particle Gun Last Messages --------------- 00832_ Acquired Hacking Suite. 00834_ K-01 Serf collects debris. 00872_ Acquired 41 matter. 00873_ Acquired 10 matter. 00885_ Acquired Imp. Sensor Array. 00890_ C-30 ARC bursts open, deploying its payload. 00890_ G-50 Soldier unfolds itself. 00890_ G-47 Trooper unfolds itself. 00890_ Cesium-ion Thruster destroyed. 00892_ Flight Unit destroyed. 00893_ Dropped Mak. Axe. 00894_ K-01 Serf collects debris. 00894_ Flight Unit destroyed. 00895_ Dropped Nuclear Core. 00896_ Flight Unit destroyed. 00898_ K-01 Serf collects debris. 00921_ Triggered Alarm Trap. 00921_ An alarm sounds. 00921_ ALERT: Alarm triggered, dispatching investigation squad. [Achievement: This Is Interesting...] Map ----- +----------------------------------------------------+ | ????????????????????# #????????????????????????? | | ????????????????????# #????????????????????????? | | ????????????????????# #????????????????????????? | | ????????????????????### #????????????????????????? | | ??????????????????????# #????????????????????????? | | ??????????????????????# #????????????????????????? | | ??????????????????????# #????????????????????????? | | ??????????????????????# #????????????????????????? | | ??????????????????????# #????????????????????????? | | ??????????????????????# #????????????????????????? | | ??????????????????????# #????????????????????????? | | ??????????????????????# #????????????????????????? | | ??????????????????????# #????????????????????????? | | ??????????????????????# #????????????????????????? | | ??????????????????????# #????????????????????????? | | ??????????????????????# #????????????????????????? | | ??????????????????????# #####????????????????????? | | ?????????###+######+### #????????????????????? | | ????????# #????????????????????? | | ????????# Y #????????????????????? | | ???????? #????????????????????? | | ?????????#+############ w #????????????????????? | | ??????????????????????## ##????????????????????? | | ???????????????????????# #?????????????????????? | | ????????[??????????????# #?????????????????????? | | ???????????????????????# @ +?????????????????????? | | ???????????????????????# #?????????????????????? | | ???????????????????????#gg #?????????????????????? | | ???????????????????????# #?????????????????????? | | ???????????????????????#####?????????????????????? | | ?????????????????????????????????????????????????? | | ?????????????????????????????????????????????????? | | ?????????????????????????????????????????????????? | | ?????????????????????????????????????????????????? | | ?????????????????????????????????????????????????? | | | | | | | | | | | | | | | | | | | | | | | | | | | | | | | +----------------------------------------------------+ Best States ------------- Heat Dissipation 35 Energy Generation 18 Energy Capacity 250 Matter Stores 300 Matter Capacity 300 Sight Range 16 Robot Scan Range 16 Terrain Scan Density 10 Additional Mass Support 9 Evasion (%) 63 Recoil Reduction 1 Offensive Hacking 10 Defensive Hacking 10 Item Schematics ----------------- None Robot Schematics ------------------ None Fabricated ------------ Nothing Alien Tech Used ----------------- None Achievements -------------- This Is Interesting... Challenges ------------ None Game ------ Seed PowerCloakingBiocell Manual? 0 Play Time 00:27:57 Cumulative 21.5 hours Start 2020.07.28 @ 06:29:05 End 2020.07.28 @ 09:45:19 Sessions 2 Manual Loads 0 Difficulty Rogue Special Mode None Game No. 60 Rogue 60 Adventurer 0 Explorer 0 Win Type - Total 0 Types 0/0/0/0/0/0/0 Lore% 26 Gallery% 31 Achievement% 29 Wizard Run 0 Options --------- ASCII 0 Keyboard 0 Movement Mouse Keybinds 0 Fullscreen 1 Font 18/SmallcapsGlow Map View 76x50 Tactical HUD 1 Map Filters NONE Filters NONE Steam 0 RUN: 5152cccb-3656-499c-ba0d-0c3fd332170e